fUST/lending_fUST_20240714
["ID","MTS","AMOUNT","RATE_DAILY","PERIOD"]
[332023322,1720936257541,-342.674123,0.00025479,7]
[332023323,1720936257551,-342.674123,0.00025479,7]
[332023324,1720936257560,-500.0,0.00025479,2]
[332023325,1720936257570,-151.0,0.00025479,7]
[332023326,1720936257579,-151.0,0.00025479,7]
[332023327,1720936257588,-500.0,0.00025479,2]
[332023328,1720936257597,-500.0,0.00025479,2]
[332023329,1720936257607,-533.46,0.00025479,2]
[332023330,1720936257616,-200.0,0.00025479,2]
[332023331,1720936257626,-500.0,0.00025479,2]
[332023332,1720936257635,-151.0,0.00025479,7]
[332023333,1720936257645,-151.0,0.00025479,7]
[332023334,1720936257654,-500.0,0.00025479,2]
[332023335,1720936257663,-151.0,0.00025479,7]
[332023336,1720936257673,-151.0,0.00025479,7]
[332023337,1720936257682,-500.0,0.00025479,2]
[332023338,1720936257691,-500.0,0.00025479,2]
[332023339,1720936257700,-500.0,0.00025479,2]
[332023340,1720936257709,-500.0,0.00025479,2]
[332023341,1720936257719,-500.0,0.00025479,2]
[332023342,1720936257728,-500.0,0.00025479,2]
[332023343,1720936257738,-500.0,0.00025479,2]
[332023344,1720936257748,-253.73880743,0.00025479,2]
[332023345,1720936257758,-500.0,0.00025479,2]
[332023346,1720936257766,-500.0,0.00025479,2]
[332023347,1720936257776,-500.0,0.00025479,2]
[332023348,1720936257786,-342.64537773,0.00025479,2]
[332023349,1720936257797,-500.0,0.00025479,2]
[332023350,1720936257806,-500.0,0.00025479,2]
[332023351,1720936257815,-500.0,0.00025479,2]
[332023352,1720936257824,-785.10769693,0.000255,5]
[332023353,1720936257833,-173939.90837964,0.000255,2]
[332023354,1720936257843,-151.0,0.000255,7]
[332023355,1720936257852,-151.0,0.000255,7]
[332023356,1720936257862,-151.0,0.000255,7]
[332023357,1720936257872,-940.675796,0.000255,7]
[332023358,1720936257883,-940.675796,0.000255,7]
[332023359,1720936257892,-151.0,0.000255,7]
[332023360,1720936257901,-268.700336,0.000255,7]
[332023361,1720936257910,-268.700336,0.000255,7]
[332023362,1720936257919,-151.0,0.000255,7]
[332023363,1720936257929,-275.557419,0.000255,7]
[332023364,1720936257938,-275.557419,0.000255,7]
[332023365,1720936257948,-151.0,0.000255,7]
[332023366,1720936257958,-151.0,0.000255,7]
[332023367,1720936257967,-306.834584,0.000255,7]
[332023368,1720936257977,-306.834584,0.000255,7]
[332023369,1720936257986,-151.0,0.000255,7]
[332023370,1720936257997,-206.670802,0.000255,7]
[332023371,1720936258008,-333.550479,0.000255,7]
[332023372,1720936258019,-206.670802,0.000255,7]
[332023373,1720936258028,-333.550479,0.000255,7]
[332023374,1720936258037,-314.297606,0.000255,7]
[332023375,1720936258047,-314.297606,0.000255,7]
[332023376,1720936258059,-196.893854,0.000255,7]
[332023377,1720936258068,-196.893854,0.000255,7]
[332023378,1720936258078,-251.720107,0.000255,7]
[332023379,1720936258091,-251.720107,0.000255,7]
[332023380,1720936258101,-342.674123,0.000255,7]
[332023381,1720936258110,-342.674123,0.000255,7]
[332023382,1720936258119,-151.0,0.000255,7]
[332023383,1720936258130,-151.0,0.000255,7]
[332023384,1720936258142,-151.0,0.000255,7]
[332023385,1720936258152,-30000.0,0.00025501,2]
[332023386,1720936258163,-246.7,0.00025631,2]
[332023387,1720936258173,-302.15405627,0.00025647,2]
[332023388,1720936258183,-450.83672143,0.00025687,2]
[332023389,1720936258192,-500.0,0.00025753,2]
[332023390,1720936258202,-500.0,0.00025753,2]
[332023391,1720936258211,-500.0,0.00025753,2]
[332023392,1720936258231,-151.0,0.00025753,7]
[332023393,1720936258242,-245.39618108,0.00025753,2]
[332023394,1720936258253,-500.0,0.00025753,2]
[332023395,1720936258263,-1166.35,0.00025753,2]
[332023396,1720936258274,-500.0,0.00025753,2]
[332023397,1720936258284,-500.0,0.00025753,2]
[332023398,1720936258294,-500.0,0.00025753,2]
[332023399,1720936258304,-564.32447951,0.00025753,2]
[332023400,1720936258314,-500.0,0.00025753,2]
[332023401,1720936258323,-500.0,0.00025753,2]
[332023402,1720936258334,-500.0,0.00025753,2]
[332023403,1720936258344,-500.0,0.00025753,2]
[332023404,1720936258354,-709.76,0.00025753,2]
[332023405,1720936258364,-500.0,0.00025753,2]
[332023406,1720936258375,-500.0,0.00025753,2]
[332023407,1720936258387,-151.0,0.00025753,7]
[332023408,1720936258397,-500.0,0.00025753,2]
[332023409,1720936258406,-500.0,0.00025753,2]
[332023410,1720936258416,-500.0,0.00025753,2]
[332023411,1720936258426,-380.98057183,0.00025753,2]
[332023412,1720936258437,-500.0,0.00025753,2]
[332023413,1720936258448,-216.44586164,0.00025753,2]
[332023414,1720936258458,-151.0,0.00025753,7]
[332023415,1720936258468,-500.0,0.00025753,2]
[332023416,1720936258480,-500.0,0.00025753,2]
[332023417,1720936258490,-500.0,0.00025753,2]
[332023418,1720936258500,-500.0,0.00025753,2]
[332023419,1720936258512,-500.0,0.00025753,2]
[332023420,1720936258523,-500.0,0.00025753,2]
[332023421,1720936258534,-500.0,0.00025753,2]
[332023422,1720936258545,-940.675796,0.00025753,7]
[332023423,1720936258556,-500.0,0.00025753,2]
[332023424,1720936258566,-940.675796,0.00025753,7]
[332023425,1720936258577,-500.0,0.00025753,2]
[332023426,1720936258587,-500.0,0.00025753,2]
[332023427,1720936258596,-500.0,0.00025753,2]
[332023428,1720936258606,-500.0,0.00025753,2]
[332023429,1720936258616,-500.0,0.00025753,2]
[332023430,1720936258626,-500.0,0.00025753,2]
[332023431,1720936258637,-500.0,0.00025753,2]
[332023432,1720936258647,-500.0,0.00025753,2]
[332023433,1720936258657,-500.0,0.00025753,2]
[332023434,1720936258667,-500.0,0.00025753,2]
[332023435,1720936258678,-500.0,0.00025753,2]
[332023436,1720936258689,-500.0,0.00025753,2]
[332023437,1720936258700,-508.39784906,0.00025753,2]
[332023438,1720936258711,-510.06740057,0.00025753,2]
[332023439,1720936258722,-263.40827183,0.00025753,2]
[332023440,1720936258732,-500.0,0.00025753,2]
[332023441,1720936258742,-500.0,0.00025753,2]
[332023442,1720936258757,-538.63578769,0.00025753,2]
[332023443,1720936258855,-151.0,0.00025753,7]
[332023444,1720936258865,-500.0,0.00025753,2]
[332023445,1720936258875,-500.0,0.00025753,2]
[332023446,1720936258886,-500.0,0.00025753,2]
[332023447,1720936258895,-500.0,0.00025753,2]
[332023448,1720936258905,-500.0,0.00025753,2]
[332023449,1720936258916,-500.0,0.00025753,2]
[332023450,1720936258927,-500.0,0.00025753,2]
[332023451,1720936258938,-500.0,0.00025753,2]
[332023452,1720936258948,-500.0,0.00025753,2]
[332023453,1720936258960,-500.0,0.00025753,2]
[332023454,1720936258969,-500.0,0.00025753,2]
[332023455,1720936258978,-500.0,0.00025753,2]
[332023456,1720936258988,-500.0,0.00025753,2]
[332023457,1720936258997,-500.0,0.00025753,2]
[332023458,1720936259006,-506.64447659,0.00025753,2]
[332023459,1720936259015,-500.0,0.00025753,2]
[332023460,1720936259025,-500.0,0.00025753,2]
[332023461,1720936259036,-500.0,0.00025753,2]
[332023462,1720936259045,-500.0,0.00025753,2]
[332023463,1720936259054,-338.21245446,0.00025753,2]
[332023464,1720936259063,-500.0,0.00025753,2]
[332023465,1720936259073,-500.0,0.00025753,2]
[332023466,1720936259086,-500.0,0.00025753,2]
[332023467,1720936259095,-500.0,0.00025753,2]
[332023468,1720936259105,-500.0,0.00025753,2]
[332023469,1720936259114,-500.0,0.00025753,2]
[332023470,1720936259123,-500.0,0.00025753,2]
[332023471,1720936259135,-500.0,0.00025753,2]
[332023472,1720936259146,-268.700336,0.00025753,7]
[332023473,1720936259155,-500.0,0.00025753,2]
[332023474,1720936259166,-268.700336,0.00025753,7]
[332023475,1720936259176,-500.0,0.00025753,2]
[332023476,1720936259186,-500.0,0.00025753,2]
[332023477,1720936259195,-500.0,0.00025753,2]
[332023478,1720936259205,-500.0,0.00025753,2]
[332023479,1720936259215,-589.44148159,0.00025753,2]
[332023480,1720936259226,-500.0,0.00025753,2]
[332023481,1720936259236,-2360.65,0.00025753,2]
[332023482,1720936259246,-500.0,0.00025753,2]
[332023483,1720936259255,-500.0,0.00025753,2]
[332023484,1720936259265,-673.77,0.00025753,2]
[332023485,1720936259274,-514.47600643,0.00025753,2]
[332023486,1720936259284,-500.0,0.00025753,2]
[332023487,1720936259294,-151.0,0.00025753,7]
[332023488,1720936259304,-500.0,0.00025753,2]
[332023489,1720936259314,-500.0,0.00025753,2]
[332023490,1720936259325,-500.0,0.00025753,2]
[332023491,1720936259336,-500.0,0.00025753,2]
[332023492,1720936259345,-500.0,0.00025753,2]
[332023493,1720936259355,-554.95,0.00025753,2]
[332023494,1720936259364,-500.0,0.00025753,2]
[332023495,1720936259373,-500.0,0.00025753,2]
[332023496,1720936259387,-500.0,0.00025753,2]
[332023497,1720936259401,-500.0,0.00025753,2]
[332023498,1720936259411,-500.0,0.00025753,2]
[332023499,1720936259424,-500.0,0.00025753,2]
[332023500,1720936259433,-500.0,0.00025753,2]
[332023501,1720936259443,-500.0,0.00025753,2]
[332023502,1720936259452,-296.95068526,0.00025753,2]
[332023503,1720936259462,-500.0,0.00025753,2]
[332023504,1720936259472,-500.0,0.00025753,2]
[332023505,1720936259481,-275.557419,0.00025753,7]
[332023506,1720936259490,-3185.79,0.00025753,2]
[332023507,1720936259500,-275.557419,0.00025753,7]
[332023508,1720936259509,-500.0,0.00025753,2]
[332023509,1720936259520,-500.0,0.00025753,2]
[332023510,1720936259529,-399.01612676,0.00025753,2]
[332023511,1720936259538,-500.0,0.00025753,2]
[332023512,1720936259547,-500.0,0.00025753,2]
[332023513,1720936259556,-500.0,0.00025753,2]
[332023514,1720936259566,-500.0,0.00025753,2]
[332023515,1720936259577,-500.0,0.00025753,2]
[332023516,1720936259588,-500.0,0.00025753,2]
[332023517,1720936259597,-500.0,0.00025753,2]
[332023518,1720936259607,-500.0,0.00025753,2]
[332023519,1720936259617,-500.0,0.00025753,2]
[332023520,1720936259627,-500.0,0.00025753,2]
[332023521,1720936259636,-500.0,0.00025753,2]
[332023522,1720936259646,-500.0,0.00025753,2]
[332023523,1720936259656,-1375.28,0.00025753,2]
[332023524,1720936259666,-500.0,0.00025753,2]
[332023525,1720936259675,-964.0,0.00025753,2]
[332023526,1720936259685,-151.0,0.00025753,7]
[332023527,1720936259695,-229.717982,0.00025753,7]
[332023528,1720936259707,-500.0,0.00025753,2]
[332023529,1720936259716,-500.0,0.00025753,2]
[332023530,1720936259726,-500.0,0.00025753,2]
[332023531,1720936259735,-612.41,0.00025753,2]
[332023532,1720936259745,-1285.59,0.00025753,2]
[332023533,1720936259754,-500.0,0.00025753,2]
[332023534,1720936259763,-500.0,0.00025753,2]
[332023535,1720936259773,-500.0,0.00025753,2]
[332023536,1720936259785,-500.0,0.00025753,2]
[332023537,1720936259795,-500.0,0.00025753,2]
[332023538,1720936259806,-1500.0,0.00025753,2]
[332023539,1720936259816,-500.0,0.00025753,2]
[332023540,1720936259825,-500.0,0.00025753,2]
[332023541,1720936259834,-500.0,0.00025753,2]
[332023542,1720936259843,-500.0,0.00025753,2]
[332023543,1720936259853,-500.0,0.00025753,2]
[332023544,1720936259862,-500.0,0.00025753,2]
[332023545,1720936259871,-500.0,0.00025753,2]
[332023546,1720936259881,-500.0,0.00025753,2]
[332023547,1720936259898,-335.85755657,0.00025753,2]
[332023548,1720936259907,-640.24894558,0.00025753,2]
[332023549,1720936259916,-500.0,0.00025753,2]
[332023550,1720936259926,-500.0,0.00025753,2]
[332023551,1720936259935,-500.0,0.00025753,2]
[332023552,1720936259944,-306.834584,0.00025753,7]
[332023553,1720936259954,-306.834584,0.00025753,7]
[332023554,1720936259963,-500.0,0.00025753,2]
[332023555,1720936259973,-500.0,0.00025753,2]
[332023556,1720936259982,-500.0,0.00025753,2]
[332023557,1720936259991,-500.0,0.00025753,2]
[332023558,1720936260001,-500.0,0.00025753,2]
[332023559,1720936260010,-505.57846822,0.00025753,2]
[332023560,1720936260020,-513.81559807,0.00025753,2]
[332023561,1720936260030,-753.17,0.00025753,2]
[332023562,1720936260039,-500.0,0.00025753,2]
[332023563,1720936260049,-151.0,0.00025753,7]
[332023564,1720936260059,-206.670802,0.00025753,7]
[332023565,1720936260069,-333.550479,0.00025753,7]
[332023566,1720936260079,-206.670802,0.00025753,7]
[332023567,1720936260093,-500.0,0.00025753,2]
[332023568,1720936260102,-500.0,0.00025753,2]
[332023569,1720936260112,-333.550479,0.00025753,7]
[332023570,1720936260185,-500.0,0.00025753,2]
[332023571,1720936260195,-500.0,0.00025753,2]
[332023572,1720936260205,-500.0,0.00025753,2]
[332023573,1720936260214,-500.0,0.00025753,2]
[332023574,1720936260224,-539.79,0.00025753,2]
[332023575,1720936260233,-553.32,0.00025753,2]
[332023576,1720936260243,-500.0,0.00025753,2]
[332023577,1720936260252,-500.0,0.00025753,2]
[332023578,1720936260261,-314.297606,0.00025753,7]
[332023579,1720936260271,-918.51,0.00025753,2]
[332023580,1720936260281,-500.0,0.00025753,2]
[332023581,1720936260291,-314.297606,0.00025753,7]
[332023582,1720936260300,-18499.92,0.00025753,2]
[332023583,1720936260310,-500.0,0.00025753,2]
[332023584,1720936260319,-328.58864507,0.00025753,2]
[332023585,1720936260329,-500.0,0.00025753,2]
[332023586,1720936260339,-500.0,0.00025753,2]
[332023587,1720936260348,-196.893854,0.00025753,7]
[332023588,1720936260357,-500.0,0.00025753,2]
[332023589,1720936260367,-196.893854,0.00025753,7]
[332023590,1720936260377,-500.0,0.00025753,2]
[332023591,1720936260389,-500.0,0.00025753,2]
[332023592,1720936260398,-500.0,0.00025753,2]
[332023593,1720936260407,-500.0,0.00025753,2]
[332023594,1720936260417,-501.03474475,0.00025753,2]
[332023595,1720936260426,-500.0,0.00025753,2]
[332023596,1720936260435,-500.0,0.00025753,2]
[332023597,1720936260444,-251.720107,0.00025753,7]
[332023598,1720936260454,-500.0,0.00025753,2]
[332023599,1720936260463,-2015.93,0.00025753,2]
[332023600,1720936260473,-500.0,0.00025753,2]
[332023601,1720936260482,-251.720107,0.00025753,7]
[332023602,1720936260491,-342.674123,0.00025753,7]
[332023603,1720936260500,-500.0,0.00025753,2]
[332023604,1720936260510,-500.0,0.00025753,2]
[332023605,1720936260519,-500.0,0.00025753,2]
[332023606,1720936260529,-342.674123,0.00025753,7]
[332023607,1720936260538,-246.32143,0.00025753,7]
[332023608,1720936260548,-500.0,0.00025753,2]
[332023609,1720936260557,-533.46,0.00025753,2]
[332023610,1720936260567,-200.0,0.00025753,2]
[332023611,1720936260576,-500.0,0.00025753,2]
[332023612,1720936260586,-151.0,0.00025753,7]
[332023613,1720936260599,-500.0,0.00025753,2]
[332023614,1720936260608,-151.0,0.00025753,7]
[332023615,1720936260617,-246.18930039,0.00025753,2]
[332023616,1720936260626,-500.0,0.00025753,2]
[332023617,1720936260638,-500.0,0.00025753,2]
[332023618,1720936260648,-500.0,0.00025753,2]
[332023619,1720936260658,-500.0,0.00025753,2]
[332023620,1720936260667,-500.0,0.00025753,2]
[332023621,1720936260677,-556.20421479,0.00025753,2]
[332023622,1720936260687,-500.0,0.00025753,2]
[332023623,1720936260696,-500.0,0.00025753,2]
[332023624,1720936260705,-500.0,0.00025753,2]
[332023625,1720936260715,-500.0,0.00025753,2]
[332023626,1720936260723,-500.0,0.00025753,2]
[332023627,1720936260733,-285.0,0.00025869,7]
[332023628,1720936260742,-302.15405627,0.00025896,2]
[332023629,1720936260752,-350.31218514,0.00025902,2]
[332023630,1720936260762,-154.55950541,0.00025902,2]
[332023631,1720936260771,-1671.71669364,0.0002601,2]
[332023632,1720936260781,-372.52510944,0.00026027,2]
[332023633,1720936260790,-242.76776576,0.00026027,2]
[332023634,1720936260799,-505.37007845,0.00026027,2]
[332023635,1720936260808,-151.0,0.00026027,7]
[332023636,1720936260817,-500.0,0.00026027,2]
[332023637,1720936260826,-1166.35,0.00026027,2]
[332023638,1720936260835,-500.0,0.00026027,2]
[332023639,1720936260844,-584.38836503,0.00026027,2]
[332023640,1720936260855,-599.46,0.00026027,2]
[332023641,1720936260864,-500.0,0.00026027,2]
[332023642,1720936260873,-500.0,0.00026027,2]
[332023643,1720936260882,-500.0,0.00026027,2]
[332023644,1720936260893,-709.76,0.00026027,2]
[332023645,1720936260902,-500.0,0.00026027,2]
[332023646,1720936260911,-500.0,0.00026027,2]
[332023647,1720936260921,-151.0,0.00026027,7]
[332023648,1720936260930,-500.0,0.00026027,2]
[332023649,1720936260939,-505.37521324,0.00026027,2]
[332023650,1720936260949,-500.0,0.00026027,2]
[332023651,1720936260958,-151.0,0.00026027,7]
[332023652,1720936260967,-500.0,0.00026027,2]
[332023653,1720936260977,-500.0,0.00026027,2]
[332023654,1720936260987,-500.0,0.00026027,2]
[332023655,1720936260997,-500.0,0.00026027,2]
[332023656,1720936261006,-500.0,0.00026027,2]
[332023657,1720936261015,-500.0,0.00026027,2]
[332023658,1720936261024,-500.0,0.00026027,2]
[332023659,1720936261033,-940.675796,0.00026027,7]
[332023660,1720936261043,-500.0,0.00026027,2]
[332023661,1720936261052,-500.0,0.00026027,2]
[332023662,1720936261061,-940.675796,0.00026027,7]
[332023663,1720936261070,-500.0,0.00026027,2]
[332023664,1720936261080,-500.0,0.00026027,2]
[332023665,1720936261093,-500.0,0.00026027,2]
[332023666,1720936261102,-500.0,0.00026027,2]
[332023667,1720936261111,-500.0,0.00026027,2]
[332023668,1720936261120,-500.0,0.00026027,2]
[332023669,1720936261129,-500.0,0.00026027,2]
[332023670,1720936261141,-500.0,0.00026027,2]
[332023671,1720936261150,-500.0,0.00026027,2]
[332023672,1720936261159,-538.30607871,0.00026027,2]
[332023673,1720936261169,-500.0,0.00026027,2]
[332023674,1720936261178,-500.0,0.00026027,2]
[332023675,1720936261187,-510.0678106,0.00026027,2]
[332023676,1720936261197,-151.0,0.00026027,7]
[332023677,1720936261206,-500.0,0.00026027,2]
[332023678,1720936261215,-500.0,0.00026027,2]
[332023679,1720936261224,-500.0,0.00026027,2]
[332023680,1720936261233,-310.28730135,0.00026027,2]
[332023681,1720936261243,-518.60727048,0.00026027,2]
[332023682,1720936261252,-500.0,0.00026027,2]
[332023683,1720936261261,-522.53945808,0.00026027,2]
[332023684,1720936261271,-635.86672219,0.00026027,2]
[332023685,1720936261280,-181.63700938,0.00026027,2]
[332023686,1720936261344,-500.0,0.00026027,2]
[332023687,1720936261354,-500.0,0.00026027,2]
[332023688,1720936261363,-500.0,0.00026027,2]
[332023689,1720936261373,-500.0,0.00026027,2]
[332023690,1720936261383,-473.72930774,0.00026027,2]
[332023691,1720936261392,-500.0,0.00026027,2]
[332023692,1720936261401,-500.0,0.00026027,2]
[332023693,1720936261411,-500.0,0.00026027,2]
[332023694,1720936261420,-500.0,0.00026027,2]
[332023695,1720936261429,-500.0,0.00026027,2]
[332023696,1720936261439,-290.04401676,0.00026027,2]
[332023697,1720936261448,-500.0,0.00026027,2]
[332023698,1720936261458,-500.0,0.00026027,2]
[332023699,1720936261467,-397.53566885,0.00026027,2]
[332023700,1720936261476,-500.0,0.00026027,2]
[332023701,1720936261486,-268.700336,0.00026027,7]
[332023702,1720936261495,-500.0,0.00026027,2]
[332023703,1720936261504,-268.700336,0.00026027,7]
[332023704,1720936261514,-500.0,0.00026027,2]
[332023705,1720936261523,-500.0,0.00026027,2]
[332023706,1720936261532,-500.0,0.00026027,2]
[332023707,1720936261541,-500.0,0.00026027,2]
[332023708,1720936261550,-500.0,0.00026027,2]
[332023709,1720936261559,-2360.65,0.00026027,2]
[332023710,1720936261568,-500.0,0.00026027,2]
[332023711,1720936261577,-500.0,0.00026027,2]
[332023712,1720936261587,-673.77,0.00026027,2]
[332023713,1720936261596,-500.0,0.00026027,2]
[332023714,1720936261605,-151.0,0.00026027,7]
[332023715,1720936261614,-500.0,0.00026027,2]
[332023716,1720936261624,-500.0,0.00026027,2]
[332023717,1720936261635,-500.0,0.00026027,2]
[332023718,1720936261645,-500.0,0.00026027,2]
[332023719,1720936261658,-209.1071623,0.00026027,2]
[332023720,1720936261667,-554.95,0.00026027,2]
[332023721,1720936261676,-500.0,0.00026027,2]
[332023722,1720936261686,-500.0,0.00026027,2]
[332023723,1720936261695,-500.0,0.00026027,2]
[332023724,1720936261705,-500.0,0.00026027,2]
[332023725,1720936261714,-500.0,0.00026027,2]
[332023726,1720936261723,-500.0,0.00026027,2]
[332023727,1720936261732,-559.30893925,0.00026027,2]
[332023728,1720936261742,-500.0,0.00026027,2]
[332023729,1720936261751,-500.0,0.00026027,2]
[332023730,1720936261760,-500.0,0.00026027,2]
[332023731,1720936261770,-275.557419,0.00026027,7]
[332023732,1720936261779,-1416.34180893,0.00026027,2]
[332023733,1720936262001,-500.0,0.00024657,2]
[332023734,1720936262010,-500.0,0.00024657,2]
[332023735,1720936262019,-500.0,0.00024657,2]
[332023736,1720936262029,-500.0,0.00024657,2]
[332023737,1720936262038,-500.0,0.00024657,2]
[332023738,1720936262048,-500.0,0.00024931,2]
[332023739,1720936262057,-500.0,0.00024931,2]
[332023740,1720936262066,-500.0,0.00025205,2]
[332023741,1720936262077,-500.0,0.00025479,2]
[332023742,1720936262089,-1769.44819107,0.00026027,2]
[332023743,1720936262100,-275.557419,0.00026027,7]
[332023744,1720936262109,-500.0,0.00026027,2]
[332023745,1720936262118,-352.71309419,0.00026027,2]
[332023746,1720936262129,-69.12348341,0.00026027,2]
[332023747,1720936262239,-430.87651659,0.00026027,2]
[332023748,1720936262248,-500.0,0.00026027,2]
[332023749,1720936262258,-296.47750654,0.00026027,2]
[332023750,1720936262361,-500.0,0.00024657,2]
[332023751,1720936262370,-412.231426,0.00024931,7]
[332023752,1720936262435,-470.38364915,0.00024931,2]
[332023753,1720936262444,-412.231426,0.00024931,7]
[332023754,1720936262454,-500.0,0.00024931,2]
[332023755,1720936262463,-412.231426,0.00025195,7]
[332023756,1720936262473,-412.231426,0.00025205,7]
[332023757,1720936262482,-250.0,0.00025281,2]
[332023758,1720936262491,-412.231426,0.00025469,7]
[332023759,1720936262501,-412.231426,0.00025479,7]
[332023760,1720936262510,-203.52249346,0.00026027,2]
[332023761,1720936262520,-500.0,0.00026027,2]
[332023762,1720936262529,-500.0,0.00026027,2]
[332023763,1720936262539,-500.0,0.00026027,2]
[332023764,1720936262548,-500.0,0.00026027,2]
[332023765,1720936262558,-500.0,0.00026027,2]
[332023766,1720936262568,-500.0,0.00026027,2]
[332023767,1720936262577,-500.0,0.00026027,2]
[332023768,1720936262587,-1375.28,0.00026027,2]
[332023769,1720936262596,-500.0,0.00026027,2]
[332023770,1720936262606,-964.0,0.00026027,2]
[332023771,1720936262615,-151.0,0.00026027,7]
[332023772,1720936262624,-369.92368184,0.00026027,2]
[332023773,1720936262635,-500.0,0.00026027,2]
[332023774,1720936262645,-500.0,0.00026027,2]
[332023775,1720936262654,-612.41,0.00026027,2]
[332023776,1720936262664,-1285.59,0.00026027,2]
[332023777,1720936262673,-341.63915713,0.00026027,2]
[332023778,1720936262799,-107.2931478,0.00026027,2]
[332023779,1720936262808,-500.0,0.00026027,2]
[332023780,1720936262819,-500.0,0.00026027,2]
[332023781,1720936262829,-500.0,0.00026027,2]
[332023782,1720936262839,-291.68252145,0.00026027,2]
[332023832,1720937253148,-160.485322,0.00021096,2]
[332023833,1720937253171,-676.875,0.00021096,2]
[332023834,1720937253193,-155.56172456,0.00021917,2]
[332023835,1720937253217,-166.2071817,0.0002276,2]
[332023836,1720937253240,-182.2883462,0.00022764,2]
[332023837,1720937253261,-285.58484555,0.00022943,2]
[332023838,1720937253283,-152.59949389,0.00023095,2]
[332023839,1720937396242,166.207179,0.00022942,2]
[332023885,1720937432875,-946.85314585,0.00022942,2]
[332023886,1720937432885,-1113.06032485,0.00022942,2]
[332023887,1720937432894,-9.31986511,0.00023095,2]
[332023889,1720937432904,-300.0,0.00023139,2]
[332023891,1720937432914,-300.0,0.00023139,2]
[332023893,1720937432923,-1841.73519456,0.0002314,2]
[332024083,1720937439921,-23058.26480544,0.0002314,2]
[332024084,1720937439932,-1251.75250445,0.00024556,2]
[332024085,1720937439942,-500.0,0.00024646,2]
[332024086,1720937439952,-24836.6522317,0.00024647,3]
[332024088,1720937439962,-210.97373135,0.00024656,2]
[332024090,1720937439973,-520.36775376,0.00024656,2]
[332024092,1720937439983,-500.0,0.00024657,2]
[332024094,1720937439993,-497.47301127,0.00024657,2]
[332024096,1720937440003,-500.0,0.00024657,2]
[332024098,1720937440014,-500.0,0.00024657,2]
[332024100,1720937440024,-570.92246406,0.00024657,2]
[332024102,1720937440035,-461.34220818,0.00024657,2]
[332024104,1720937440045,-505.86172795,0.00024657,2]
[332024106,1720937440055,-520.89545066,0.00024657,2]
[332024108,1720937440065,-500.0,0.00024657,2]
[332024111,1720937440075,-500.0,0.00024657,2]
[332024113,1720937440087,-500.0,0.00024657,2]
[332024115,1720937440097,-500.0,0.00024657,2]
[332024117,1720937440107,-500.0,0.00024657,2]
[332024119,1720937440118,-503.13036073,0.00024657,2]
[332024121,1720937440127,-500.0,0.00024657,2]
[332024124,1720937440137,-500.0,0.00024657,2]
[332024127,1720937440147,-500.0,0.00024657,2]
[332024129,1720937440157,-502.12198042,0.00024657,2]
[332024131,1720937440172,-500.0,0.00024657,2]